fUST/lending_fUST_20250424
["ID","MTS","AMOUNT","RATE_DAILY","PERIOD"]
[358814803,1745460634825,-501.59743846,0.00021917,2]
[358814804,1745460634835,-151.0,0.00021917,2]
[358814805,1745460634845,-500.0,0.00021917,2]
[358814806,1745460634855,-500.0,0.00021917,2]
[358814807,1745460634864,-1131.53,0.00021917,2]
[358814808,1745460634874,-500.0,0.00021917,2]
[358814809,1745460634883,-766.2,0.00021917,2]
[358814810,1745460634893,-502.40079546,0.00021917,2]
[358814811,1745460634903,-500.0,0.00021917,2]
[358814812,1745460634913,-500.0,0.00021917,2]
[358814813,1745460634922,-504.0678533,0.00021917,2]
[358814814,1745460634933,-501.20455317,0.00021917,2]
[358814815,1745460634944,-500.0,0.00021917,2]
[358814816,1745460634954,-500.0,0.00021917,2]
[358814817,1745460634964,-500.0,0.00021917,2]
[358814818,1745460634974,-500.0,0.00021917,2]
[358814819,1745460634986,-500.0,0.00021917,2]
[358814820,1745460634998,-500.0,0.00021917,2]
[358814821,1745460635011,-500.0,0.00021917,2]
[358814822,1745460635023,-500.0,0.00021917,2]
[358814823,1745460635032,-500.0,0.00021917,2]
[358814824,1745460635042,-3971.14,0.00021917,2]
[358814825,1745460635052,-500.0,0.00021917,2]
[358814826,1745460635061,-3971.14,0.00021917,2]
[358814827,1745460635071,-500.0,0.00021917,2]
[358814828,1745460635081,-2658.41455776,0.00021917,2]
[358814829,1745460635552,-1312.72544224,0.00021917,2]
[358814830,1745460635563,-500.0,0.00021917,2]
[358814831,1745460635573,-3971.14,0.00021917,2]
[358814832,1745460635584,-500.0,0.00021917,2]
[358814833,1745460635597,-913.43,0.00021917,2]
[358814834,1745460635607,-3971.14,0.00021917,2]
[358814835,1745460635616,-500.0,0.00021917,2]
[358814836,1745460635626,-3971.14,0.00021917,2]
[358814837,1745460635636,-500.0,0.00021917,2]
[358814838,1745460635646,-3971.14,0.00021917,2]
[358814839,1745460635656,-500.0,0.00021917,2]
[358814840,1745460635671,-3971.14,0.00021917,2]
[358814841,1745460635680,-500.0,0.00021917,2]
[358814842,1745460635691,-3971.14,0.00021917,2]
[358814843,1745460635701,-500.0,0.00021917,2]
[358814844,1745460635710,-3971.14,0.00021917,2]
[358814845,1745460635720,-3971.14,0.00021917,2]
[358814846,1745460635731,-500.0,0.00021917,2]
[358814847,1745460635741,-500.0,0.00021917,2]
[358814848,1745460635751,-500.0,0.00021917,2]
[358814849,1745460635762,-174.4199467,0.00021917,2]
[358814850,1745460635772,-3971.14,0.00021917,2]
[358814851,1745460635782,-502.7892502,0.00021917,2]
[358814852,1745460635791,-3971.14,0.00021917,2]
[358814853,1745460635801,-3971.14,0.00021917,2]
[358814854,1745460635811,-500.0,0.00021917,2]
[358814855,1745460635823,-3971.14,0.00021917,2]
[358814856,1745460635833,-3971.14,0.00021917,2]
[358814857,1745460635843,-3971.14,0.00021917,2]
[358814858,1745460635853,-3971.14,0.00021917,2]
[358814859,1745460635863,-3971.14,0.00021917,2]
[358814860,1745460635872,-3971.14,0.00021917,2]
[358814861,1745460635882,-3971.14,0.00021917,2]
[358814862,1745460635891,-3971.14,0.00021917,2]
[358814863,1745460635901,-3971.14,0.00021917,2]
[358814864,1745460635911,-3971.22776487,0.00021917,2]
[358814865,1745460635920,-510.96085635,0.00021917,2]
[358814866,1745460635930,-500.0,0.00021917,2]
[358814867,1745460635939,-500.0,0.00021917,2]
[358814868,1745460635949,-500.0,0.00021917,2]
[358814869,1745460635959,-500.0,0.00021917,2]
[358814870,1745460635968,-500.22187471,0.00021917,2]
[358814871,1745460635977,-500.0,0.00021917,2]
[358814872,1745460635989,-925.93,0.00021917,2]
[358814873,1745460635999,-500.0,0.00021917,2]
[358814874,1745460636008,-500.0,0.00021917,2]
[358814875,1745460636018,-500.0,0.00021917,2]
[358814876,1745460636028,-500.26938146,0.00021917,2]
[358814877,1745460636037,-500.0,0.00021917,2]
[358814878,1745460636047,-500.0,0.00021917,2]
[358814879,1745460636057,-500.0,0.00021917,2]
[358814880,1745460636066,-500.0,0.00021917,2]
[358814881,1745460636076,-503.51896174,0.00021917,2]
[358814882,1745460636086,-500.0,0.00021917,2]
[358814883,1745460636095,-503.62403034,0.00021917,2]
[358814884,1745460636105,-500.0,0.00021917,2]
[358814885,1745460636115,-500.0,0.00021917,2]
[358814886,1745460636124,-151.0,0.00021917,2]
[358814887,1745460636135,-234.11792696,0.00021917,2]
[358814888,1745460636145,-500.0,0.00021917,2]
[358814889,1745460636155,-215.91631969,0.00021917,2]
[358814890,1745460636164,-500.0,0.00021917,2]
[358814891,1745460636174,-500.0,0.00021917,2]
[358814892,1745460636184,-501.82272865,0.00021917,2]
[358814893,1745460636194,-506.57535323,0.00021917,2]
[358814894,1745460636204,-500.0,0.00021917,2]
[358814895,1745460636213,-500.0,0.00021917,2]
[358814896,1745460636223,-500.0,0.00021917,2]
[358814897,1745460636233,-500.0,0.00021917,2]
[358814898,1745460636242,-500.0,0.00021917,2]
[358814899,1745460636252,-500.0,0.00021917,2]
[358814900,1745460636261,-500.0,0.00021917,2]
[358814901,1745460636271,-500.0,0.00021917,2]
[358814902,1745460636281,-500.0,0.00021917,2]
[358814903,1745460636291,-500.0,0.00021917,2]
[358814904,1745460636301,-500.0,0.00021917,2]
[358814905,1745460636310,-500.0,0.00021917,2]
[358814906,1745460636319,-180.470728,0.00021917,2]
[358814907,1745460636329,-395.73474467,0.00021917,2]
[358814908,1745460636339,-500.0,0.00021917,2]
[358814909,1745460636348,-501.4866331,0.00021917,2]
[358814910,1745460636357,-506.93292938,0.00021917,2]
[358814911,1745460636368,-500.0,0.00021917,2]
[358814912,1745460636378,-500.0,0.00021917,2]
[358814913,1745460636388,-500.0,0.00021917,2]
[358814914,1745460636398,-500.0,0.00021917,2]
[358814915,1745460636407,-502.35567509,0.00021917,2]
[358814916,1745460636418,-500.0,0.00021917,2]
[358814917,1745460636428,-500.0,0.00021917,2]
[358814918,1745460636438,-251.66545103,0.00021917,2]
[358814919,1745460636449,-502.56713501,0.00021917,2]
[358814920,1745460636458,-500.0,0.00021917,2]
[358814921,1745460636468,-500.0,0.00021917,2]
[358814922,1745460636478,-500.0,0.00021917,2]
[358814923,1745460636488,-500.0,0.00021917,2]
[358814924,1745460636498,-500.0,0.00021917,2]
[358814925,1745460636508,-713.24,0.00021917,2]
[358814926,1745460636518,-625.25302743,0.00021917,2]
[358814927,1745460636527,-500.0,0.00021917,2]
[358814928,1745460636537,-517.2312987,0.00021917,2]
[358814929,1745460636547,-749.43,0.00021917,2]
[358814930,1745460636557,-749.43,0.00021917,2]
[358814931,1745460636567,-749.43,0.00021917,2]
[358814932,1745460636577,-749.43,0.00021917,2]
[358814933,1745460636587,-749.43,0.00021917,2]
[358814934,1745460636597,-749.43,0.00021917,2]
[358814935,1745460636607,-749.43,0.00021917,2]
[358814936,1745460636616,-749.43,0.00021917,2]
[358814937,1745460636625,-749.43,0.00021917,2]
[358814938,1745460636635,-749.43,0.00021917,2]
[358814939,1745460636645,-749.43,0.00021917,2]
[358814940,1745460636655,-749.43,0.00021917,2]
[358814941,1745460636667,-749.43,0.00021917,2]
[358814942,1745460636677,-749.43,0.00021917,2]
[358814943,1745460636687,-749.43,0.00021917,2]
[358814944,1745460636700,-749.43,0.00021917,2]
[358814945,1745460636710,-749.43,0.00021917,2]
[358814946,1745460636719,-500.0,0.00021917,2]
[358814947,1745460636729,-500.0,0.00021917,2]
[358814948,1745460636740,-151.0,0.00021917,2]
[358814949,1745460636750,-151.0,0.00021917,2]
[358814950,1745460636760,-1100.54,0.00021917,2]
[358814951,1745460636772,-500.0,0.00021917,2]
[358814952,1745460636782,-500.0,0.00021917,2]
[358814953,1745460636791,-500.0,0.00021917,2]
[358814954,1745460636801,-500.0,0.00021917,2]
[358814955,1745460636810,-500.0,0.00021917,2]
[358814956,1745460636821,-284.90917381,0.00021917,2]
[358814957,1745460636830,-500.0,0.00021917,2]
[358814958,1745460636840,-500.0,0.00021917,2]
[358814959,1745460636849,-508.5359256,0.00021917,2]
[358814960,1745460636859,-500.0,0.00021917,2]
[358814961,1745460636869,-500.0,0.00021917,2]
[358814962,1745460636879,-276.96975461,0.00021917,2]
[358814963,1745460636899,-500.0,0.00021917,2]
[358814964,1745460636911,-500.0,0.00021917,2]
[358814965,1745460636922,-500.0,0.00021917,2]
[358814966,1745460636932,-500.0,0.00021917,2]
[358814967,1745460636943,-500.0,0.00021917,2]
[358814968,1745460636954,-500.0,0.00021917,2]
[358814969,1745460636964,-500.0,0.00021917,2]
[358814970,1745460636974,-500.0,0.00021917,2]
[358814971,1745460636983,-500.0,0.00021917,2]
[358814972,1745460636993,-500.0,0.00021917,2]
[358814973,1745460637004,-500.0,0.00021917,2]
[358814974,1745460637015,-500.0,0.00021917,2]
[358814975,1745460637025,-500.0,0.00021917,2]
[358814976,1745460637034,-200.57801707,0.00021917,2]
[358814977,1745460637046,-500.0,0.00021917,2]
[358814978,1745460637056,-500.0,0.00021917,2]
[358814979,1745460637066,-500.0,0.00021917,2]
[358814980,1745460637077,-500.0,0.00021917,2]
[358814981,1745460637086,-500.0,0.00021917,2]
[358814982,1745460637097,-500.0,0.00021917,2]
[358814983,1745460637107,-500.0,0.00021917,2]
[358814984,1745460637118,-500.0,0.00021917,2]
[358814985,1745460637128,-500.0,0.00021917,2]
[358814986,1745460637138,-500.0,0.00021917,2]
[358814987,1745460637148,-500.0,0.00021917,2]
[358814988,1745460637158,-500.0,0.00021917,2]
[358814989,1745460637167,-500.0,0.00021917,2]
[358814990,1745460637177,-630.95308103,0.00021917,2]
[358814991,1745460637187,-502.02862867,0.00021917,2]
[358814992,1745460637197,-500.0,0.00021917,2]
[358814993,1745460637207,-505.24336812,0.00021917,2]
[358814994,1745460637217,-640.25,0.00021917,2]
[358814995,1745460637227,-500.0,0.00021917,2]
[358814996,1745460637237,-567.98221573,0.00021917,2]
[358814997,1745460637247,-500.0,0.00021917,2]
[358814998,1745460637260,-500.0,0.00021917,2]
[358814999,1745460637274,-263.53010441,0.00021917,2]
[358815000,1745460637299,-236.46989559,0.00021917,2]
[358815001,1745460637309,-500.0,0.00021917,2]
[358815002,1745460637319,-883.62,0.00021917,2]
[358815003,1745460637329,-594.37,0.00021917,2]
[358815004,1745460637339,-500.0,0.00021917,2]
[358815005,1745460637349,-501.15594124,0.00021917,2]
[358815006,1745460637359,-503.06051988,0.00021917,2]
[358815007,1745460637369,-500.0,0.00021917,2]
[358815008,1745460637379,-518.09877324,0.00021917,2]
[358815009,1745460637389,-500.0,0.00021917,2]
[358815010,1745460637399,-500.0,0.00021917,2]
[358815011,1745460637408,-500.0,0.00021917,2]
[358815012,1745460637418,-500.53962334,0.00021917,2]
[358815013,1745460637428,-500.0,0.00021917,2]
[358815014,1745460637438,-500.0,0.00021917,2]
[358815015,1745460637448,-500.0,0.00021917,2]
[358815016,1745460637459,-500.0,0.00021917,2]
[358815018,1745460637469,-500.0,0.00021917,2]
[358815020,1745460637479,-326.35063124,0.00021917,2]
[358815022,1745460637490,-500.0,0.00021917,2]
[358815024,1745460637500,-630.6,0.00021917,2]
[358815027,1745460637510,-151.0,0.00021917,2]
[358815028,1745460637526,-726.83,0.00021917,2]
[358815029,1745460637536,-500.0,0.00021917,2]
[358815030,1745460637547,-728.02,0.00021917,2]
[358815031,1745460637558,-500.0,0.00021917,2]
[358815032,1745460637568,-836.89,0.00021917,2]
[358815033,1745460637578,-500.0,0.00021917,2]
[358815034,1745460637588,-510.88526489,0.00021917,2]
[358815035,1745460637598,-500.0,0.00021917,2]
[358815036,1745460637609,-504.44346801,0.00021917,2]
[358815037,1745460637620,-500.0,0.00021917,2]
[358815039,1745460637630,-500.0,0.00021917,2]
[358815040,1745460637640,-500.0,0.00021917,2]
[358815043,1745460637651,-151.0,0.00021917,2]
[358815045,1745460637663,-500.0,0.00021917,2]
[358815047,1745460637673,-500.0,0.00021917,2]
[358815049,1745460637682,-500.57345766,0.00021917,2]
[358815051,1745460637695,-637.09266458,0.00021917,2]
[358815072,1745460637889,-672.77,0.00021917,2]
[358815074,1745460637900,-500.0,0.00021917,2]
[358815076,1745460637910,-500.0,0.00021917,2]
[358815078,1745460637920,-500.0,0.00021917,2]
[358815081,1745460637930,-578.41,0.00021917,2]
[358815083,1745460637939,-500.0,0.00021917,2]
[358815085,1745460637949,-602.25,0.00021917,2]
[358815087,1745460637959,-500.0,0.00021917,2]
[358815089,1745460637969,-622.8,0.00021917,2]
[358815091,1745460637978,-701.62,0.00021917,2]
[358815093,1745460637988,-151.0,0.00021917,2]
[358815095,1745460637998,-506.47,0.00021917,2]
[358815097,1745460638008,-557.18,0.00021917,2]
[358815099,1745460638017,-500.0,0.00021917,2]
[358815101,1745460638027,-264.99405431,0.00021917,2]
[358815103,1745460638036,-446.39190096,0.00021917,2]
[358815105,1745460638046,-500.0,0.00021917,2]
[358815107,1745460638056,-500.0,0.00021917,2]
[358815109,1745460638068,-500.0,0.00021917,2]
[358815111,1745460638077,-500.0,0.00021917,2]
[358815113,1745460638087,-500.0,0.00021917,2]
[358815115,1745460638096,-500.0,0.00021917,2]
[358815117,1745460638106,-1473.21,0.00021917,2]
[358815119,1745460638115,-500.0,0.00021917,2]
[358815121,1745460638125,-1260.68,0.00021917,2]
[358815123,1745460638134,-500.0,0.00021917,2]
[358815125,1745460638143,-500.0,0.00021917,2]
[358815127,1745460638152,-502.88057313,0.00021917,2]
[358815129,1745460638164,-501.90479982,0.00021917,2]
[358815132,1745460638174,-500.0,0.00021917,2]
[358815133,1745460638184,-500.0,0.00021917,2]
[358815135,1745460638193,-507.66014742,0.00021917,2]
[358815138,1745460638203,-500.0,0.00021917,2]
[358815140,1745460638213,-502.639725,0.00021917,2]
[358815142,1745460638223,-642.87,0.00021917,2]
[358815144,1745460638233,-500.0,0.00021917,2]
[358815146,1745460638242,-500.0,0.00021917,2]
[358815148,1745460638252,-705.85,0.00021917,2]
[358815150,1745460638261,-500.0,0.00021917,2]
[358815152,1745460638271,-500.0,0.00021917,2]
[358815154,1745460638280,-499.15333508,0.00021917,2]
[358815156,1745460638290,-479.61757413,0.00021917,2]
[358815158,1745460638300,-500.0,0.00021917,2]
[358815160,1745460638309,-500.0,0.00021917,2]
[358815162,1745460638318,-500.0,0.00021917,2]
[358815164,1745460638328,-503.98694432,0.00021917,2]
[358815166,1745460638337,-500.0,0.00021917,2]
[358815168,1745460638350,-500.0,0.00021917,2]
[358815170,1745460638360,-500.0,0.00021917,2]
[358815172,1745460638369,-507.08012579,0.00021917,2]
[358815174,1745460638379,-507.13208574,0.00021917,2]
[358815176,1745460638388,-500.0,0.00021917,2]
[358815178,1745460638398,-1249.44,0.00021917,2]
[358815180,1745460638408,-500.0,0.00021917,2]
[358815182,1745460638418,-500.0,0.00021917,2]
[358815183,1745460638428,-2059.75,0.00021917,2]
[358815184,1745460638437,-500.0,0.00021917,2]
[358815185,1745460638448,-500.0,0.00021917,2]
[358815186,1745460638457,-500.0,0.00021917,2]
[358815187,1745460638467,-500.0,0.00021917,2]
[358815188,1745460638477,-500.0,0.00021917,2]
[358815189,1745460638488,-500.0,0.00021917,2]
[358815190,1745460638499,-500.0,0.00021917,2]
[358815191,1745460638508,-500.0,0.00021917,2]
[358815192,1745460638518,-500.0,0.00021917,2]
[358815193,1745460638527,-500.0,0.00021917,2]
[358815194,1745460638536,-500.0,0.00021917,2]
[358815195,1745460638547,-500.0,0.00021917,2]
[358815196,1745460638556,-182.44,0.00021917,2]
[358815197,1745460638566,-500.9846911,0.00021917,2]
[358815198,1745460638575,-500.0,0.00021917,2]
[358815199,1745460638586,-372.67114753,0.00021917,2]
[358815200,1745460638595,-500.0,0.00021917,2]
[358815201,1745460638604,-500.0,0.00021917,2]
[358815202,1745460638614,-500.0,0.00021917,2]
[358815203,1745460638624,-1397.41,0.00021917,2]
[358815204,1745460638633,-955.6,0.00021917,2]
[358815205,1745460638644,-500.0,0.00021917,2]
[358815206,1745460638653,-535.63,0.00021917,2]
[358815207,1745460638664,-500.95991757,0.00021917,2]
[358815208,1745460638674,-500.0,0.00021917,2]
[358815209,1745460638683,-500.0,0.00021917,2]
[358815210,1745460638696,-1235.79,0.00021917,2]
[358815211,1745460638706,-1314.04,0.00021917,2]
[358815212,1745460638716,-500.0,0.00021917,2]
[358815213,1745460638725,-294.10760555,0.00021917,2]
[358815214,1745460638736,-512.20182967,0.00021917,2]
[358815215,1745460638745,-500.0,0.00021917,2]
[358815216,1745460638755,-500.0,0.00021917,2]
[358815217,1745460638767,-321.5800307,0.00021917,2]
[358815218,1745460638778,-500.0,0.00021917,2]
[358815219,1745460638788,-500.0,0.00021917,2]
[358815220,1745460638798,-500.0,0.00021917,2]
[358815221,1745460638807,-3147.21,0.00021917,2]
[358815222,1745460638817,-683.03,0.00021917,2]
[358815223,1745460638826,-513.9128067,0.00021917,2]
[358815224,1745460638836,-641.12,0.00021917,2]
[358815225,1745460638846,-510.8577025,0.00021917,2]
[358815226,1745460638857,-500.0,0.00021917,2]
[358815227,1745460638867,-695.38,0.00021917,2]
[358815228,1745460638876,-268.69791272,0.00021917,2]
[358815229,1745460638886,-502.67361764,0.00021917,2]
[358815230,1745460638896,-500.0,0.00021917,2]
[358815231,1745460638906,-500.0,0.00021917,2]
[358815232,1745460638915,-500.0,0.00021917,2]
[358815233,1745460638927,-506.26756306,0.00021917,2]
[358815234,1745460638936,-500.0,0.00021917,2]
[358815235,1745460638946,-500.0,0.00021917,2]
[358815236,1745460638955,-502.79166609,0.00021917,2]
[358815237,1745460638965,-500.0,0.00021917,2]
[358815238,1745460638974,-500.34648851,0.00021917,2]
[358815239,1745460638984,-882.26,0.00021917,2]
[358815240,1745460638993,-715.55,0.00021917,2]
[358815241,1745460639003,-500.0,0.00021917,2]
[358815242,1745460639013,-500.0,0.00021917,2]
[358815243,1745460639023,-500.0,0.00021917,2]
[358815244,1745460639032,-500.0,0.00021917,2]
[358815245,1745460639042,-500.0,0.00021917,2]
[358815246,1745460639054,-500.0,0.00021917,2]
[358815247,1745460639064,-500.0,0.00021917,2]
[358815248,1745460639073,-500.0,0.00021917,2]
[358815249,1745460639083,-157.99606669,0.00021917,2]
[358815250,1745460639092,-500.0,0.00021917,2]
[358815251,1745460639101,-505.31200336,0.00021917,2]
[358815252,1745460639111,-500.0,0.00021917,2]
[358815253,1745460639121,-500.0,0.00021917,2]
[358815254,1745460639131,-500.0,0.00021917,2]
[358815255,1745460639140,-151.0,0.00021917,2]
[358815256,1745460639150,-1051.98,0.00021917,2]
[358815257,1745460639160,-1212.69,0.00021917,2]
[358815258,1745460639169,-500.0,0.00021917,2]
[358815259,1745460639178,-151.0,0.00021917,2]
[358815260,1745460639188,-151.0,0.00021917,2]
[358815261,1745460639197,-526.78439953,0.00021917,2]
[358815262,1745460639207,-764.32,0.00021917,2]
[358815263,1745460639216,-500.0,0.00021917,2]
[358815264,1745460639226,-151.0,0.00021917,2]
[358815265,1745460639236,-151.0,0.00021917,2]
[358815266,1745460639245,-151.0,0.00021917,2]
[358815267,1745460639255,-151.0,0.00021917,2]
[358815268,1745460639264,-500.0,0.00021917,2]
[358815269,1745460639274,-823.94,0.00021917,2]
[358815270,1745460639284,-960.43508119,0.00021917,2]
[358815271,1745460639641,-278.79491881,0.00021917,2]
[358815272,1745460639652,-759.5,0.00021917,2]
[358815273,1745460639661,-500.0,0.00021917,2]
[358815274,1745460639671,-500.0,0.00021917,2]
[358815275,1745460639681,-503.21226093,0.00021917,2]
[358815276,1745460639694,-502.76787948,0.00021917,2]
[358815277,1745460639704,-500.0,0.00021917,2]
[358815278,1745460639713,-1034.15,0.00021917,2]
[358815279,1745460639723,-500.0,0.00021917,2]
[358815280,1745460639733,-500.0,0.00021917,2]
[358815281,1745460639743,-1022.23,0.00021917,2]
[358815282,1745460639752,-570.56674627,0.00021917,2]
[358815283,1745460639761,-500.11095084,0.00021917,2]
[358815284,1745460639773,-500.0,0.00021917,2]
[358815285,1745460639782,-500.0,0.00021917,2]
[358815286,1745460639791,-500.0,0.00021917,2]
[358815287,1745460639803,-689.2,0.00021917,2]
[358815288,1745460639813,-500.0,0.00021917,2]
[358815289,1745460639823,-500.0,0.00021917,2]
[358815290,1745460639832,-270.04147169,0.00021917,2]
[358815291,1745460639842,-500.0,0.00021917,2]
[358815292,1745460639852,-1335.29,0.00021917,2]
[358815293,1745460639866,-500.0,0.00021917,2]
[358815294,1745460639875,-507.68529747,0.00021917,2]
[358815295,1745460639885,-500.0,0.00021917,2]
[358815296,1745460639895,-500.0,0.00021917,2]
[358815297,1745460639904,-272.54223893,0.00021917,2]
[358815298,1745460640038,-500.0,0.00021917,2]
[358815299,1745460640049,-548.09,0.00021917,2]
[358815300,1745460640058,-704.67,0.00021917,2]
[358815301,1745460640068,-501.60441298,0.00021917,2]
[358815302,1745460640079,-500.0,0.00021917,2]
[358815304,1745460640089,-500.0,0.00021917,2]
[358815306,1745460640099,-500.0,0.00021917,2]
[358815307,1745460640111,-500.0,0.00021917,2]
[358815308,1745460640122,-504.75730629,0.00021917,2]
[358815309,1745460640132,-961.07,0.00021917,2]
[358815310,1745460640141,-500.0,0.00021917,2]
[358815311,1745460640151,-500.0,0.00021917,2]
[358815313,1745460640160,-500.0,0.00021917,2]
[358815315,1745460640170,-557.0,0.00021917,2]
[358815317,1745460640179,-500.0,0.00021917,2]
[358815319,1745460640189,-671.44,0.00021917,2]
[358815321,1745460640199,-641.40019076,0.00021917,2]
[358815323,1745460640209,-500.0,0.00021917,2]
[358815325,1745460640219,-500.0,0.00021917,2]
[358815327,1745460640228,-500.0,0.00021917,2]
[358815329,1745460640237,-500.0,0.00021917,2]
[358815331,1745460640247,-639.40498532,0.00021917,2]
[358815332,1745460640256,-500.0,0.00021917,2]
[358815333,1745460640266,-1010.36,0.00021917,2]
[358815334,1745460640275,-1186.32,0.00021917,2]
[358815335,1745460640284,-517.65,0.00021917,2]
[358815336,1745460640293,-500.0,0.00021917,2]
[358815337,1745460640305,-1730.06,0.00021917,2]
[358815338,1745460640314,-500.0,0.00021917,2]
[358815339,1745460640323,-151.0,0.00021917,2]
[358815340,1745460640332,-1071.05,0.00021917,2]
[358815341,1745460640342,-500.0,0.00021917,2]
[358815342,1745460640351,-504.07446353,0.00021917,2]
[358815343,1745460640361,-515.25885162,0.00021917,2]
[358815344,1745460640370,-500.0,0.00021917,2]
[358815345,1745460640380,-500.0,0.00021917,2]
[358815346,1745460640389,-828.17,0.00021917,2]
[358815347,1745460640400,-500.0,0.00021917,2]
[358815348,1745460640410,-822.36,0.00021917,2]
[358815349,1745460640420,-504.00011293,0.00021917,2]
[358815350,1745460640430,-500.0,0.00021917,2]
[358815351,1745460640439,-500.0,0.00021917,2]
[358815352,1745460640449,-500.0,0.00021917,2]
[358815353,1745460640458,-500.0,0.00021917,2]
[358815354,1745460640468,-500.0,0.00021917,2]
[358815355,1745460640478,-500.0,0.00021917,2]
[358815356,1745460640487,-500.0,0.00021917,2]
[358815357,1745460640497,-502.51762018,0.00021917,2]
[358815358,1745460640507,-500.0,0.00021917,2]
[358815359,1745460640516,-500.0,0.00021917,2]
[358815360,1745460640526,-500.0,0.00021917,2]
[358815361,1745460640536,-500.0,0.00021917,2]
[358815362,1745460640547,-1655.47,0.00021917,2]
[358815363,1745460640557,-500.0,0.00021917,2]
[358815364,1745460640566,-500.0,0.00021917,2]
[358815365,1745460640576,-500.0,0.00021917,2]
[358815366,1745460640586,-1385.46,0.00021917,2]
[358815367,1745460640597,-500.0,0.00021917,2]
[358815368,1745460640607,-500.0,0.00021917,2]
[358815369,1745460640617,-2869.64,0.00021917,2]
[358815370,1745460640626,-500.0,0.00021917,2]
[358815371,1745460640636,-500.0,0.00021917,2]
[358815372,1745460640646,-500.0,0.00021917,2]
[358815373,1745460640656,-500.0,0.00021917,2]
[358815374,1745460640666,-1154.14,0.00021917,2]
[358815375,1745460640676,-500.0,0.00021917,2]
[358815376,1745460640686,-500.0,0.00021917,2]
[358815377,1745460640698,-508.81839657,0.00021917,2]
[358815378,1745460640708,-500.0,0.00021917,2]
[358815379,1745460640718,-500.0,0.00021917,2]
[358815380,1745460640727,-686.72,0.00021917,2]
[358815381,1745460640738,-500.0,0.00021917,2]
[358815382,1745460640748,-2156.6,0.00021917,2]
[358815383,1745460640758,-916.09,0.00021917,2]
[358815384,1745460640769,-500.0,0.00021917,2]
[358815385,1745460640779,-550.42,0.00021917,2]
[358815386,1745460640788,-500.0,0.00021917,2]
[358815387,1745460640798,-151.0,0.00021917,2]
[358815388,1745460640808,-1201.21,0.00021917,2]
[358815389,1745460640817,-151.0,0.00021917,2]
[358815390,1745460640826,-500.0,0.00021917,2]
[358815391,1745460640836,-151.0,0.00021917,2]
[358815392,1745460640845,-151.0,0.00021917,2]
[358815393,1745460640855,-500.0,0.00021917,2]
[358815394,1745460640864,-500.0,0.00021917,2]
[358815395,1745460640873,-500.0,0.00021917,2]
[358815396,1745460640883,-944.66,0.00021917,2]
[358815397,1745460640892,-500.0,0.00021917,2]
[358815398,1745460640902,-234.47772711,0.00021917,2]
[358815399,1745460640912,-500.0,0.00021917,2]
[358815400,1745460640921,-500.0,0.00021917,2]
[358815401,1745460640930,-506.51508837,0.00021917,2]
[358815402,1745460640940,-500.0,0.00021917,2]
[358815403,1745460640950,-2659.62,0.00021917,2]